[Event "Late-Titled-Tuesday-Blitz-April-23-2024"]
[Site "Chess.com"]
[Date "2024.04.23"]
[Round "1"]
[White "kalinchick"]
[Black "Karacsonyi_Gellert"]
[Result "0-1"]
[WhiteElo "2441"]
[BlackElo "2754"]
[TimeControl "180+1"]
[EndTime "14:09:21 PDT"]
[Termination "Karacsonyi_Gellert won by resignation"]

1. d4 {[%clk 0:02:56.8]} 1... f5 {[%clk 0:02:58.9]} 2. g3 {[%clk 0:02:56.2]}
2... Nf6 {[%clk 0:02:59]} 3. Bg2 {[%clk 0:02:56.8]} 3... g6 {[%clk 0:02:59.9]}
4. c4 {[%clk 0:02:53.5]} 4... Bg7 {[%clk 0:03:00.8]} 5. Nc3 {[%clk 0:02:53.9]}
5... O-O {[%clk 0:03:00.8]} 6. Nf3 {[%clk 0:02:54.5]} 6... e6 {[%clk 0:03:01.1]}
7. O-O {[%clk 0:02:55]} 7... d6 {[%clk 0:03:02]} 8. Qc2 {[%clk 0:02:52.2]} 8...
Nc6 {[%clk 0:03:02.1]} 9. d5 {[%clk 0:02:43.4]} 9... Ne5 {[%clk 0:03:01.6]} 10.
Nd2 {[%clk 0:02:37.6]} 10... c6 {[%clk 0:02:56]} 11. h3 {[%clk 0:02:24.8]} 11...
Nf7 {[%clk 0:02:52.5]} 12. dxc6 {[%clk 0:02:22.7]} 12... bxc6 {[%clk 0:02:52.3]}
13. Bxc6 {[%clk 0:02:21.1]} 13... Rb8 {[%clk 0:02:52.8]} 14. Bg2 {[%clk
0:02:14.1]} 14... Bb7 {[%clk 0:02:52.8]} 15. b3 {[%clk 0:02:11.8]} 15... Bxg2
{[%clk 0:02:52]} 16. Kxg2 {[%clk 0:02:12.4]} 16... g5 {[%clk 0:02:52]} 17. Bb2
{[%clk 0:02:11.7]} 17... g4 {[%clk 0:02:51.9]} 18. h4 {[%clk 0:02:10]} 18... f4
{[%clk 0:02:52.1]} 19. Nce4 {[%clk 0:01:57.1]} 19... e5 {[%clk 0:02:49.8]} 20.
Nxf6+ {[%clk 0:01:54.8]} 20... Bxf6 {[%clk 0:02:49.6]} 21. Qe4 {[%clk
0:01:40.4]} 21... Nh6 {[%clk 0:02:45.3]} 22. Rfd1 {[%clk 0:01:28]} 22... Qe7
{[%clk 0:02:44.2]} 23. Nf1 {[%clk 0:01:26]} 23... Kg7 {[%clk 0:02:42.8]} 24. Rd3
{[%clk 0:01:24.3]} 24... Rbd8 {[%clk 0:02:29]} 25. Rad1 {[%clk 0:01:23.5]} 25...
Nf7 {[%clk 0:02:26.5]} 26. Qf5 {[%clk 0:01:17.9]} 26... Kh8 {[%clk 0:02:25.8]}
27. Qxg4 {[%clk 0:01:17]} 27... Rg8 {[%clk 0:02:26.1]} 28. Qh5 {[%clk
0:01:16.4]} 28... Bxh4 {[%clk 0:02:24.6]} 29. Nd2 {[%clk 0:01:01.6]} 29... Bf6
{[%clk 0:02:13.9]} 30. Rh1 {[%clk 0:01:01]} 30... Rg7 {[%clk 0:02:14.4]} 31. Ne4
{[%clk 0:00:55.4]} 31... Rdg8 {[%clk 0:02:14.4]} 32. Ba3 {[%clk 0:00:52.3]}
32... Qb7 {[%clk 0:02:12.9]} 33. Rd5 {[%clk 0:00:46.5]} 33... Be7 {[%clk
0:02:08.1]} 34. Qf5 {[%clk 0:00:34.2]} 34... Qa6 {[%clk 0:01:59.1]} 35. Bb4
{[%clk 0:00:20.1]} 35... Qxa2 {[%clk 0:01:59.5]} 36. Bxd6 {[%clk 0:00:20.7]}
36... Bxd6 {[%clk 0:01:48.3]} 37. Nxd6 {[%clk 0:00:20.2]} 37... Qxe2 {[%clk
0:01:00.9]} 38. Nxf7+ {[%clk 0:00:11.1]} 38... Rxf7 {[%clk 0:01:01.8]} 39. Qxe5+
{[%clk 0:00:10.7]} 39... Qxe5 {[%clk 0:01:01.5]} 40. Rxe5 {[%clk 0:00:11.6]}
40... f3+ {[%clk 0:00:55.7]} 41. Kh2 {[%clk 0:00:10.3]} 41... Rb8 {[%clk
0:00:49.8]} 42. Re3 {[%clk 0:00:10.7]} 42... Rb6 {[%clk 0:00:32.7]} 43. Ra1
{[%clk 0:00:10.3]} 43... Kg7 {[%clk 0:00:32.5]} 44. Ra4 {[%clk 0:00:05.5]} 44...
Rh6+ {[%clk 0:00:27.4]} 45. Kg1 {[%clk 0:00:05]} 45... Rd6 {[%clk 0:00:28.3]}
46. c5 {[%clk 0:00:04.4]} 46... Rd1+ {[%clk 0:00:28.2]} 47. Kh2 {[%clk
0:00:05.1]} 47... Rf1 {[%clk 0:00:24.4]} 48. Rf4 {[%clk 0:00:02.9]} 48... Rxf2+
{[%clk 0:00:23.3]} 49. Kh3 {[%clk 0:00:03.1]} 49... Rf1 {[%clk 0:00:15.8]} 50.
Kg4 {[%clk 0:00:03]} 50... f2 {[%clk 0:00:14.6]} 51. Rxf7+ {[%clk 0:00:02.8]}
51... Kxf7 {[%clk 0:00:15.5]} 52. Kf3 {[%clk 0:00:03]} 52... Rc1 {[%clk
0:00:12.5]} 53. Kxf2 {[%clk 0:00:03.2]} 53... Rxc5 {[%clk 0:00:13.1]} 54. Rf3+
{[%clk 0:00:04.1]} 54... Kg7 {[%clk 0:00:13.2]} 55. Rd3 {[%clk 0:00:04.6]} 55...
Rc7 {[%clk 0:00:13.5]} 56. Ke3 {[%clk 0:00:04.5]} 56... Re7+ {[%clk 0:00:13.8]}
57. Kf3 {[%clk 0:00:05.1]} 57... Rb7 {[%clk 0:00:14.7]} 58. Rc3 {[%clk
0:00:05.3]} 58... Kf6 {[%clk 0:00:15]} 59. Rc6+ {[%clk 0:00:04.8]} 59... Ke5
{[%clk 0:00:15.2]} 60. Rc3 {[%clk 0:00:05.7]} 60... Kd4 {[%clk 0:00:15.6]} 61.
Re3 {[%clk 0:00:05.5]} 61... Rf7+ {[%clk 0:00:15]} 62. Ke2 {[%clk 0:00:06]}
62... Rc7 {[%clk 0:00:15.4]} 63. Kf3 {[%clk 0:00:05.5]} 63... Rb7 {[%clk
0:00:14]} 64. Ke2 {[%clk 0:00:05.3]} 64... a5 {[%clk 0:00:14.2]} 65. Rd3+ {[%clk
0:00:05.8]} 65... Ke4 {[%clk 0:00:14.1]} 66. Re3+ {[%clk 0:00:06]} 66... Kf5
{[%clk 0:00:14.6]} 67. Kf3 {[%clk 0:00:03.7]} 67... Kg5 {[%clk 0:00:14.2]} 68.
Rc3 {[%clk 0:00:03.4]} 68... Kf6 {[%clk 0:00:12.9]} 69. Rc6+ {[%clk 0:00:02.5]}
69... Kf7 {[%clk 0:00:11.3]} 70. Rc3 {[%clk 0:00:02.5]} 70... Ke6 {[%clk
0:00:11.3]} 71. Re3+ {[%clk 0:00:03.2]} 71... Kd5 {[%clk 0:00:11.5]} 72. Rd3+
{[%clk 0:00:03.9]} 72... Kc5 {[%clk 0:00:11.9]} 73. Ke3 {[%clk 0:00:04.4]} 73...
Kb4 {[%clk 0:00:12.1]} 74. Kf3 {[%clk 0:00:04.4]} 74... Ka3 {[%clk 0:00:12.3]}
75. Rd5 {[%clk 0:00:03.8]} 75... Rxb3+ {[%clk 0:00:12.2]} 76. Kg4 {[%clk
0:00:04.4]} 76... a4 {[%clk 0:00:12.1]} 77. Kg5 {[%clk 0:00:04.5]} 77... Rxg3+
{[%clk 0:00:12]} 78. Kh6 {[%clk 0:00:05]} 78... Rh3+ {[%clk 0:00:12.1]} 79. Kg7
{[%clk 0:00:05.4]} 79... Kb3 {[%clk 0:00:12.1]} 80. Kf6 {[%clk 0:00:05.9]} 80...
a3 {[%clk 0:00:12.1]} 81. Rb5+ {[%clk 0:00:06.6]} 81... Kc2 {[%clk 0:00:12.1]}
82. Rc5+ {[%clk 0:00:06.9]} 82... Rc3 {[%clk 0:00:12.3]} 83. Ra5 {[%clk
0:00:06.5]} 83... Kb2 {[%clk 0:00:12.4]} 84. Rb5+ {[%clk 0:00:06.2]} 84... Rb3
{[%clk 0:00:12.3]} 85. Rh5 {[%clk 0:00:06.8]} 85... a2 {[%clk 0:00:12.8]} 86.
Rh2+ {[%clk 0:00:06.8]} 86... Ka3 {[%clk 0:00:13.3]} 87. Rxh7 {[%clk 0:00:07]}
87... a1=Q+ {[%clk 0:00:12.7]} 0-1

[Event "Late-Titled-Tuesday-Blitz-April-23-2024"]
[Site "Chess.com"]
[Date "2024.04.23"]
[Round "1"]
[White "ccccvhhhj"]
[Black "kingofthenil"]
[Result "1-0"]
[WhiteElo "2474"]
[BlackElo "2786"]
[TimeControl "180+1"]
[EndTime "14:09:36 PDT"]
[Termination "ccccvhhhj won on time"]

1. e4 {[%clk 0:03:00.9]} 1... Nc6 {[%clk 0:03:00]} 2. Nf3 {[%clk 0:03:00.4]}
2... d5 {[%clk 0:03:00.4]} 3. e5 {[%clk 0:02:58.9]} 3... Bg4 {[%clk 0:02:59.5]}
4. d4 {[%clk 0:02:59.2]} 4... e6 {[%clk 0:02:54.5]} 5. c3 {[%clk 0:02:52.6]}
5... f6 {[%clk 0:02:50]} 6. Bb5 {[%clk 0:02:49.1]} 6... fxe5 {[%clk 0:02:39.4]}
7. dxe5 {[%clk 0:02:07]} 7... Ne7 {[%clk 0:02:33.1]} 8. Bf4 {[%clk 0:02:03.5]}
8... Ng6 {[%clk 0:02:29.8]} 9. Bg3 {[%clk 0:02:04.1]} 9... Bc5 {[%clk
0:02:29.1]} 10. Nbd2 {[%clk 0:02:02.8]} 10... O-O {[%clk 0:02:29.3]} 11. Bxc6
{[%clk 0:01:47.3]} 11... bxc6 {[%clk 0:02:28.6]} 12. Qa4 {[%clk 0:01:47.1]}
12... Bxf3 {[%clk 0:02:18.5]} 13. Nxf3 {[%clk 0:01:47.6]} 13... Qd7 {[%clk
0:02:14.9]} 14. O-O {[%clk 0:01:47.4]} 14... Rf7 {[%clk 0:02:07.7]} 15. Qc2
{[%clk 0:01:40.2]} 15... Raf8 {[%clk 0:02:06.3]} 16. b4 {[%clk 0:01:40.1]} 16...
Bb6 {[%clk 0:02:02]} 17. a4 {[%clk 0:01:40.5]} 17... a6 {[%clk 0:01:59.2]} 18.
a5 {[%clk 0:01:37.1]} 18... Ba7 {[%clk 0:01:59]} 19. Qe2 {[%clk 0:01:38]} 19...
Qc8 {[%clk 0:01:33.6]} 20. Nd4 {[%clk 0:01:38.6]} 20... Ne7 {[%clk 0:01:26.6]}
21. Bh4 {[%clk 0:00:58]} 21... Bxd4 {[%clk 0:01:25.2]} 22. Bxe7 {[%clk
0:00:55.9]} 22... Bxc3 {[%clk 0:01:24.7]} 23. Rac1 {[%clk 0:00:47.1]} 23... Rxe7
{[%clk 0:01:24.1]} 24. Rxc3 {[%clk 0:00:47.2]} 24... Qb7 {[%clk 0:01:25]} 25.
Qb2 {[%clk 0:00:42.7]} 25... Rf4 {[%clk 0:01:19.3]} 26. Rb1 {[%clk 0:00:41]}
26... Ref7 {[%clk 0:01:18.4]} 27. f3 {[%clk 0:00:41.2]} 27... R7f5 {[%clk
0:01:10.3]} 28. Re3 {[%clk 0:00:30.5]} 28... Rc4 {[%clk 0:01:08.9]} 29. h3
{[%clk 0:00:26.2]} 29... Rff4 {[%clk 0:01:08.5]} 30. Rb3 {[%clk 0:00:26.6]}
30... h5 {[%clk 0:01:07.7]} 31. Kh2 {[%clk 0:00:27]} 31... h4 {[%clk 0:01:07.9]}
32. Qa3 {[%clk 0:00:24.8]} 32... Qb5 {[%clk 0:01:04.8]} 33. Rc3 {[%clk
0:00:22.3]} 33... Rxc3 {[%clk 0:00:36.1]} 34. Qxc3 {[%clk 0:00:23.2]} 34... d4
{[%clk 0:00:37]} 35. Qd2 {[%clk 0:00:23]} 35... Qxe5 {[%clk 0:00:36.6]} 36. Kh1
{[%clk 0:00:23.6]} 36... Qd6 {[%clk 0:00:32.6]} 37. Qd3 {[%clk 0:00:19.1]} 37...
Rf5 {[%clk 0:00:12.7]} 38. Qxa6 {[%clk 0:00:18.6]} 38... d3 {[%clk 0:00:11.8]}
39. Rd1 {[%clk 0:00:19.1]} 39... d2 {[%clk 0:00:11.8]} 40. Qe2 {[%clk
0:00:18.7]} 40... Rd5 {[%clk 0:00:11.8]} 41. a6 {[%clk 0:00:19.2]} 41... Re5
{[%clk 0:00:05.8]} 42. Qxd2 {[%clk 0:00:17.7]} 42... Qxd2 {[%clk 0:00:04.6]} 43.
Rxd2 {[%clk 0:00:18.6]} 43... Re1+ {[%clk 0:00:05.5]} 44. Kh2 {[%clk 0:00:18.5]}
44... Ra1 {[%clk 0:00:06.4]} 45. Rd8+ {[%clk 0:00:16.9]} 45... Kf7 {[%clk
0:00:06.4]} 46. Ra8 {[%clk 0:00:17.8]} 46... Kf6 {[%clk 0:00:06]} 47. a7 {[%clk
0:00:17]} 47... Ke5 {[%clk 0:00:06.4]} 48. Rg8 {[%clk 0:00:17]} 48... Rxa7
{[%clk 0:00:06]} 49. Rxg7 {[%clk 0:00:17.9]} 49... Ra4 {[%clk 0:00:02.5]} 50.
Rg4 {[%clk 0:00:18.2]} 50... c5 {[%clk 0:00:02.8]} 51. Rg5+ {[%clk 0:00:16.8]}
51... Kf6 {[%clk 0:00:02.5]} 52. Rxc5 {[%clk 0:00:17]} 52... Rxb4 {[%clk
0:00:03.1]} 53. Rxc7 {[%clk 0:00:17.7]} 53... Kg5 {[%clk 0:00:01]} 54. Rg7+
{[%clk 0:00:18]} 54... Kh6 {[%clk 0:00:01.5]} 55. Rg4 {[%clk 0:00:17.9]} 55...
Rb2 {[%clk 0:00:01.7]} 56. Rxh4+ {[%clk 0:00:18.4]} 56... Kg5 {[%clk 0:00:02.6]}
57. Re4 {[%clk 0:00:18.5]} 57... Kf5 {[%clk 0:00:02.8]} 58. Kg3 {[%clk
0:00:18.8]} 58... e5 {[%clk 0:00:03.1]} 59. Rh4 {[%clk 0:00:16.3]} 59... Rc2
{[%clk 0:00:02.8]} 60. Rh5+ {[%clk 0:00:16.8]} 60... Kf6 {[%clk 0:00:03.4]} 61.
Rh6+ {[%clk 0:00:17.2]} 61... Kf5 {[%clk 0:00:03.9]} 62. Rh8 {[%clk 0:00:17.8]}
62... Kg5 {[%clk 0:00:03.5]} 63. Rg8+ {[%clk 0:00:18]} 63... Kf5 {[%clk
0:00:03.8]} 64. h4 {[%clk 0:00:17.9]} 64... Rc1 {[%clk 0:00:04.3]} 65. Kh2
{[%clk 0:00:16.6]} 65... Rc6 {[%clk 0:00:03.8]} 66. Kh3 {[%clk 0:00:14.6]} 66...
Rc1 {[%clk 0:00:03.3]} 67. Rf8+ {[%clk 0:00:13.8]} 67... Kg6 {[%clk 0:00:01.9]}
68. Re8 {[%clk 0:00:14.7]} 68... Kf5 {[%clk 0:00:01.9]} 69. Kg3 {[%clk
0:00:14.8]} 69... Rc7 {[%clk 0:00:01.5]} 70. Rf8+ {[%clk 0:00:14.6]} 70... Ke6
{[%clk 0:00:02.1]} 71. Kh3 {[%clk 0:00:13]} 71... Ke7 {[%clk 0:00:01.9]} 72. Rf5
{[%clk 0:00:12.6]} 72... Ke6 {[%clk 0:00:02.4]} 73. Rf8 {[%clk 0:00:12.9]} 73...
Rg7 {[%clk 0:00:02.2]} 74. g4 {[%clk 0:00:11.9]} 74... Ke7 {[%clk 0:00:02.7]}
75. Rf5 {[%clk 0:00:12.1]} 75... Ke6 {[%clk 0:00:03.3]} 76. h5 {[%clk
0:00:12.3]} 76... Ra7 {[%clk 0:00:04.2]} 77. Kh4 {[%clk 0:00:10.5]} 77... Ra1
{[%clk 0:00:04.2]} 78. Kg5 {[%clk 0:00:11]} 78... Rh1 {[%clk 0:00:03.2]} 79. h6
{[%clk 0:00:10.8]} 79... Rh3 {[%clk 0:00:03.6]} 80. Rf6+ {[%clk 0:00:10.2]}
80... Kd5 {[%clk 0:00:03.2]} 81. Rg6 {[%clk 0:00:09]} 81... Rxf3 {[%clk
0:00:02.6]} 82. h7 {[%clk 0:00:09.5]} 82... Rf8 {[%clk 0:00:01.8]} 83. Rg8
{[%clk 0:00:09.9]} 83... Rf7 {[%clk 0:00:01.6]} 84. h8=Q {[%clk 0:00:10.1]}
84... e4 {[%clk 0:00:01.5]} 85. Rd8+ {[%clk 0:00:10.4]} 85... Kc4 {[%clk
0:00:01.9]} 86. Qd4+ {[%clk 0:00:10.5]} 86... Kb5 {[%clk 0:00:02]} 87. Rb8+
{[%clk 0:00:10.9]} 87... Kc6 {[%clk 0:00:02.2]} 88. Rc8+ {[%clk 0:00:11]} 88...
Kb7 {[%clk 0:00:02.2]} 89. Rc1 {[%clk 0:00:10]} 89... Re7 {[%clk 0:00:01.1]} 90.
Qb4+ {[%clk 0:00:09.7]} 1-0

[Event "Late-Titled-Tuesday-Blitz-April-23-2024"]
[Site "Chess.com"]
[Date "2024.04.23"]
[Round "1"]
[White "HajiyevKanan"]
[Black "Navyblue1"]
[Result "1/2-1/2"]
[WhiteElo "2607"]
[BlackElo "2265"]
[TimeControl "180+1"]
[EndTime "14:10:04 PDT"]
[Termination "Game drawn by repetition"]

1. d4 {[%clk 0:02:51.2]} 1... Nf6 {[%clk 0:02:59.1]} 2. Nf3 {[%clk 0:02:52.1]}
2... g6 {[%clk 0:02:57.6]} 3. g3 {[%clk 0:02:52.4]} 3... Bg7 {[%clk 0:02:57.8]}
4. Bg2 {[%clk 0:02:53.3]} 4... O-O {[%clk 0:02:57.7]} 5. O-O {[%clk 0:02:54.2]}
5... d6 {[%clk 0:02:56.2]} 6. b3 {[%clk 0:02:55.1]} 6... c5 {[%clk 0:02:49.7]}
7. Bb2 {[%clk 0:02:55.5]} 7... cxd4 {[%clk 0:02:49.4]} 8. Nxd4 {[%clk
0:02:56.4]} 8... a6 {[%clk 0:02:39.6]} 9. c4 {[%clk 0:02:56.4]} 9... Qc7 {[%clk
0:02:39.2]} 10. Nc3 {[%clk 0:02:56.8]} 10... Nc6 {[%clk 0:02:38.7]} 11. Qd2
{[%clk 0:02:57.4]} 11... Nxd4 {[%clk 0:02:34.9]} 12. Qxd4 {[%clk 0:02:58.3]}
12... Bd7 {[%clk 0:02:31]} 13. Nd5 {[%clk 0:02:58.6]} 13... Qd8 {[%clk
0:02:26.1]} 14. Nb6 {[%clk 0:02:33.3]} 14... Rb8 {[%clk 0:02:22.4]} 15. Nxd7
{[%clk 0:02:32.8]} 15... Qxd7 {[%clk 0:02:21.8]} 16. Qd2 {[%clk 0:02:31]} 16...
b5 {[%clk 0:02:11.5]} 17. Rac1 {[%clk 0:02:30]} 17... bxc4 {[%clk 0:02:11.1]}
18. Rxc4 {[%clk 0:02:30.9]} 18... Rfc8 {[%clk 0:02:10]} 19. Rfc1 {[%clk
0:02:31.1]} 19... Rxc4 {[%clk 0:02:01.2]} 20. Rxc4 {[%clk 0:02:32]} 20... Rc8
{[%clk 0:01:57.2]} 21. Qb4 {[%clk 0:02:29.6]} 21... Rxc4 {[%clk 0:01:50.7]} 22.
Qxc4 {[%clk 0:02:30.5]} 22... a5 {[%clk 0:01:44]} 23. Qa6 {[%clk 0:02:22.3]}
23... Qc7 {[%clk 0:01:36]} 24. Qa8+ {[%clk 0:02:20.4]} 24... Bf8 {[%clk
0:01:36.1]} 25. Bxf6 {[%clk 0:02:13.9]} 25... exf6 {[%clk 0:01:35.3]} 26. Bc6
{[%clk 0:02:12.7]} 26... Kg7 {[%clk 0:01:33.3]} 27. Kg2 {[%clk 0:02:10.5]} 27...
Be7 {[%clk 0:01:31.2]} 28. h4 {[%clk 0:02:08.3]} 28... h5 {[%clk 0:01:26.4]} 29.
Qe8 {[%clk 0:02:08]} 29... f5 {[%clk 0:01:24.2]} 30. Bd5 {[%clk 0:02:07.2]}
30... Bf6 {[%clk 0:01:23.1]} 31. a4 {[%clk 0:02:07.6]} 31... Bc3 {[%clk
0:01:21]} 32. Bc4 {[%clk 0:02:05]} 32... Be5 {[%clk 0:01:16.8]} 33. e3 {[%clk
0:02:00.6]} 33... Bf6 {[%clk 0:01:09.7]} 34. Kg1 {[%clk 0:01:58.3]} 34... Be5
{[%clk 0:01:08.5]} 35. Qb5 {[%clk 0:01:58.2]} 35... Bc3 {[%clk 0:01:04.3]} 36.
Qd5 {[%clk 0:01:57.7]} 36... Bf6 {[%clk 0:00:59.9]} 37. Kf1 {[%clk 0:01:58]}
37... Bc3 {[%clk 0:00:59.6]} 38. Ke2 {[%clk 0:01:58.3]} 38... Be5 {[%clk
0:00:56.6]} 39. f4 {[%clk 0:01:58]} 39... Bf6 {[%clk 0:00:54.6]} 40. Kf3 {[%clk
0:01:57.7]} 40... Bc3 {[%clk 0:00:48.9]} 41. e4 {[%clk 0:01:57.9]} 41... fxe4+
{[%clk 0:00:48.3]} 42. Kxe4 {[%clk 0:01:58.5]} 42... Qe7+ {[%clk 0:00:46.3]} 43.
Kd3 {[%clk 0:01:58.8]} 43... Bf6 {[%clk 0:00:41.4]} 44. Qe4 {[%clk 0:01:42.4]}
44... Qxe4+ {[%clk 0:00:30.8]} 45. Kxe4 {[%clk 0:01:43.3]} 45... Bc3 {[%clk
0:00:30.9]} 46. Kd5 {[%clk 0:01:43.7]} 46... Bb4 {[%clk 0:00:31]} 47. Ke4 {[%clk
0:01:42.6]} 47... f5+ {[%clk 0:00:28.2]} 48. Ke3 {[%clk 0:01:40.4]} 48... Kf6
{[%clk 0:00:26.6]} 49. Bd5 {[%clk 0:01:40]} 49... Be1 {[%clk 0:00:25.1]} 50. Kf3
{[%clk 0:01:40.1]} 50... Ke7 {[%clk 0:00:23.4]} 51. Bc4 {[%clk 0:01:39.9]} 51...
Kf6 {[%clk 0:00:21.6]} 52. Kg2 {[%clk 0:01:39.5]} 52... Ke7 {[%clk 0:00:20.6]}
53. Bd5 {[%clk 0:01:37.3]} 53... Kf6 {[%clk 0:00:20.2]} 54. Bc6 {[%clk
0:01:36.6]} 54... Ke7 {[%clk 0:00:20.1]} 55. Bb5 {[%clk 0:01:36.3]} 55... Kf6
{[%clk 0:00:20.2]} 56. Bc4 {[%clk 0:01:36.6]} 56... Ke7 {[%clk 0:00:20.4]} 57.
Kh2 {[%clk 0:01:36.8]} 57... Kf6 {[%clk 0:00:20.3]} 58. Kh3 {[%clk 0:01:37.5]}
58... Ke7 {[%clk 0:00:20.4]} 59. Bb5 {[%clk 0:01:37.7]} 59... Kf6 {[%clk
0:00:20.5]} 60. Be8 {[%clk 0:01:38]} 60... Bf2 {[%clk 0:00:19.8]} 61. Bc6 {[%clk
0:01:37.2]} 61... Be1 {[%clk 0:00:19.7]} 62. Kh2 {[%clk 0:01:35.8]} 62... Bf2
{[%clk 0:00:19]} 63. Kg2 {[%clk 0:01:36.2]} 63... Be1 {[%clk 0:00:18.5]} 64. Bd5
{[%clk 0:01:36]} 64... Ke7 {[%clk 0:00:17.8]} 65. Kh2 {[%clk 0:01:34.5]} 65...
Kf6 {[%clk 0:00:17.9]} 66. Bc4 {[%clk 0:01:33.7]} 66... Bf2 {[%clk 0:00:17.5]}
67. b4 {[%clk 0:01:30.6]} 67... axb4 {[%clk 0:00:17]} 68. a5 {[%clk 0:01:31.3]}
68... Ba7 {[%clk 0:00:15]} 69. Kg2 {[%clk 0:01:30.3]} 69... Ke7 {[%clk
0:00:15.1]} 70. Kf3 {[%clk 0:01:30.5]} 70... Kf6 {[%clk 0:00:12.7]} 71. a6
{[%clk 0:01:31]} 71... Ke7 {[%clk 0:00:12]} 72. Ke2 {[%clk 0:01:31]} 72... Kd7
{[%clk 0:00:11.7]} 73. Bf7 {[%clk 0:01:30.2]} 73... Kc6 {[%clk 0:00:08.8]} 74.
Bxg6 {[%clk 0:01:29.2]} 74... Kb6 {[%clk 0:00:09.5]} 75. Bxh5 {[%clk 0:01:27]}
75... Kxa6 {[%clk 0:00:10.1]} 76. Bg6 {[%clk 0:01:26.7]} 76... Bd4 {[%clk
0:00:10.2]} 77. Bxf5 {[%clk 0:01:26.5]} 77... Kb5 {[%clk 0:00:10.5]} 78. Kd3
{[%clk 0:01:25.8]} 78... Bf6 {[%clk 0:00:10.3]} 79. Bd7+ {[%clk 0:01:25.8]}
79... Kc5 {[%clk 0:00:09.6]} 80. h5 {[%clk 0:01:26.3]} 80... b3 {[%clk
0:00:09.4]} 81. Ba4 {[%clk 0:01:23.3]} 81... Kb4 {[%clk 0:00:09.7]} 82. Bd7
{[%clk 0:01:21.4]} 82... Ka3 {[%clk 0:00:09.8]} 83. Be6 {[%clk 0:01:15.5]} 83...
b2 {[%clk 0:00:09.6]} 84. Kc2 {[%clk 0:01:13]} 84... Bd4 {[%clk 0:00:08.8]} 85.
g4 {[%clk 0:01:11.8]} 85... Be3 {[%clk 0:00:08.9]} 86. f5 {[%clk 0:01:06.4]}
86... Bg5 {[%clk 0:00:09.4]} 87. Bd5 {[%clk 0:01:04.2]} 87... Kb4 {[%clk
0:00:09.2]} 88. Kxb2 {[%clk 0:01:04.1]} 88... Kc5 {[%clk 0:00:09.8]} 89. Bf3
{[%clk 0:00:59.8]} 89... d5 {[%clk 0:00:10.3]} 90. Kc3 {[%clk 0:00:59.7]} 90...
Bf6+ {[%clk 0:00:08.8]} 91. Kd3 {[%clk 0:01:00.1]} 91... Bg5 {[%clk 0:00:09.4]}
92. Bd1 {[%clk 0:00:59.9]} 92... Kd6 {[%clk 0:00:08.1]} 93. Kd4 {[%clk
0:00:58.8]} 93... Bf6+ {[%clk 0:00:08.6]} 94. Ke3 {[%clk 0:00:59.3]} 94... Bg5+
{[%clk 0:00:09.2]} 95. Kd4 {[%clk 0:00:58.7]} 95... Bf6+ {[%clk 0:00:09.1]} 96.
Kd3 {[%clk 0:00:58.5]} 96... Bg5 {[%clk 0:00:09.7]} 97. Ke2 {[%clk 0:00:57.7]}
97... Ke5 {[%clk 0:00:09.5]} 98. Kf3 {[%clk 0:00:58.3]} 98... d4 {[%clk
0:00:09.9]} 99. Bc2 {[%clk 0:00:58.2]} 99... Kf6 {[%clk 0:00:09.1]} 100. Ke4
{[%clk 0:00:57]} 100... Be3 {[%clk 0:00:08.8]} 101. Bd1 {[%clk 0:00:56.8]}
101... Kg5 {[%clk 0:00:08.5]} 102. Be2 {[%clk 0:00:57]} 102... Kf6 {[%clk
0:00:08.5]} 103. Kd5 {[%clk 0:00:55.1]} 103... Kg5 {[%clk 0:00:06.1]} 104. Ke6
{[%clk 0:00:55.2]} 104... d3 {[%clk 0:00:06.4]} 105. Bxd3 {[%clk 0:00:54.7]}
105... Kxg4 {[%clk 0:00:07]} 106. f6 {[%clk 0:00:53.8]} 106... Kxh5 {[%clk
0:00:07.2]} 107. f7 {[%clk 0:00:52.5]} 107... Bc5 {[%clk 0:00:07.6]} 108. Kf6
{[%clk 0:00:51.1]} 108... Kh4 {[%clk 0:00:07.2]} 109. Bc4 {[%clk 0:00:50.3]}
109... Kg3 {[%clk 0:00:07]} 110. Kg7 {[%clk 0:00:50.9]} 110... Kf4 {[%clk
0:00:07.2]} 111. Kg8 {[%clk 0:00:51.4]} 111... Ke5 {[%clk 0:00:06.7]} 112. Bb3
{[%clk 0:00:51.9]} 112... Bd6 {[%clk 0:00:06.3]} 113. Kg7 {[%clk 0:00:52]}
113... Bc5 {[%clk 0:00:06.4]} 114. Ba2 {[%clk 0:00:52.6]} 114... Bd6 {[%clk
0:00:06.7]} 115. Kg8 {[%clk 0:00:53.2]} 115... Bc5 {[%clk 0:00:07]} 116. Kg7
{[%clk 0:00:53.8]} 116... Bd6 {[%clk 0:00:07.2]} 117. Kg6 {[%clk 0:00:54.5]}
117... Bc5 {[%clk 0:00:07.5]} 118. Kg5 {[%clk 0:00:55.3]} 118... Bd6 {[%clk
0:00:07.7]} 119. Kg4 {[%clk 0:00:56]} 119... Bc5 {[%clk 0:00:08.1]} 120. Kf3
{[%clk 0:00:56.7]} 120... Bd6 {[%clk 0:00:08.4]} 121. Ke3 {[%clk 0:00:57.3]}
121... Kf6 {[%clk 0:00:08.5]} 122. Kd3 {[%clk 0:00:58.2]} 122... Kg7 {[%clk
0:00:08.5]} 123. Bd5 {[%clk 0:00:58.8]} 123... Kf8 {[%clk 0:00:08.7]} 124. Ke4
{[%clk 0:00:59.5]} 124... Be7 {[%clk 0:00:09.2]} 125. Kf5 {[%clk 0:01:00.2]}
125... Bd6 {[%clk 0:00:09.5]} 126. Ke6 {[%clk 0:01:01.1]} 126... Be7 {[%clk
0:00:09.3]} 127. Bc4 {[%clk 0:01:02]} 127... Ba3 {[%clk 0:00:09.5]} 128. Kd7
{[%clk 0:01:02.8]} 128... Bb4 {[%clk 0:00:09.9]} 129. Kc6 {[%clk 0:01:03.7]}
129... Ba3 {[%clk 0:00:10.3]} 130. Kb5 {[%clk 0:01:04.4]} 130... Bc1 {[%clk
0:00:10.8]} 131. Bd5 {[%clk 0:01:04.9]} 131... Bh6 {[%clk 0:00:11.4]} 132. Kc4
{[%clk 0:01:05.8]} 132... Bg7 {[%clk 0:00:11.9]} 133. Kd3 {[%clk 0:01:06.5]}
133... Bh6 {[%clk 0:00:12.5]} 134. Ke4 {[%clk 0:01:07.4]} 134... Bg7 {[%clk
0:00:12.5]} 135. Kf5 {[%clk 0:01:08.3]} 135... Ba1 {[%clk 0:00:12.6]} 136. Kg6
{[%clk 0:01:09.2]} 136... Bb2 {[%clk 0:00:12.9]} 137. Kf5 {[%clk 0:01:09.6]}
137... Ba3 {[%clk 0:00:13.6]} 138. Ke6 {[%clk 0:01:10.3]} 138... Bb2 {[%clk
0:00:14.3]} 139. Be4 {[%clk 0:01:10.9]} 139... Ba1 {[%clk 0:00:14.5]} 140. Bg6
{[%clk 0:01:11.8]} 140... Bb2 {[%clk 0:00:14.9]} 141. Bh5 {[%clk 0:01:12.7]}
141... Ba1 {[%clk 0:00:15.5]} 142. Bg4 {[%clk 0:01:13.4]} 142... Bb2 {[%clk
0:00:16.1]} 143. Bf3 {[%clk 0:01:14.3]} 143... Ba1 {[%clk 0:00:16.7]} 144. Be2
{[%clk 0:01:15]} 144... Bb2 {[%clk 0:00:17.3]} 145. Bf3 {[%clk 0:01:15.7]}
145... Ba1 {[%clk 0:00:17.9]} 146. Be2 {[%clk 0:01:16.6]} 146... Bb2 {[%clk
0:00:18.5]} 147. Bf3 {[%clk 0:01:17.5]} 1/2-1/2

[Event "Late-Titled-Tuesday-Blitz-April-23-2024"]
[Site "Chess.com"]
[Date "2024.04.23"]
[Round "2"]
[White "Casablanca"]
[Black "MagnusCarlsen"]
[Result "0-1"]
[WhiteElo "2688"]
[BlackElo "3226"]
[TimeControl "180+1"]
[EndTime "14:12:06 PDT"]
[Termination "MagnusCarlsen won by resignation"]

1. d4 {[%clk 0:03:00.9]} 1... d5 {[%clk 0:02:59.3]} 2. c4 {[%clk 0:03:01.1]}
2... e5 {[%clk 0:02:58.3]} 3. dxe5 {[%clk 0:03:01]} 3... Ne7 {[%clk 0:02:58.7]}
4. cxd5 {[%clk 0:02:58.3]} 4... Qxd5 {[%clk 0:02:58.1]} 5. Qxd5 {[%clk
0:02:57.9]} 5... Nxd5 {[%clk 0:02:59]} 6. Nf3 {[%clk 0:02:55.8]} 6... Nb4 {[%clk
0:02:57.6]} 7. Na3 {[%clk 0:02:55.4]} 7... N8c6 {[%clk 0:02:57.6]} 8. e3 {[%clk
0:02:55.1]} 8... Be6 {[%clk 0:02:57.4]} 9. b3 {[%clk 0:02:52.2]} 9... O-O-O
{[%clk 0:02:55.9]} 10. Bc4 {[%clk 0:02:50.8]} 10... Bxc4 {[%clk 0:02:53.4]} 11.
Nxc4 {[%clk 0:02:50.3]} 11... Nc2+ {[%clk 0:02:52.7]} 12. Ke2 {[%clk 0:02:49.9]}
12... Nxa1 {[%clk 0:02:53.6]} 13. Bb2 {[%clk 0:02:47.8]} 13... Nc2 {[%clk
0:02:53.4]} 14. Rc1 {[%clk 0:02:48.5]} 14... N2b4 {[%clk 0:02:52.8]} 0-1